{"text_format":"1","workbook":"xlsx","n_sheets":2,"sheets":["Feuil1","Feuil2"],"not_rendered":{"charts":0,"images":35,"macros":1,"external_links":0,"defined_names":25,"comments":0,"pivot_tables":0},"unopened":[],"bounds":{"document_bytes":16777216,"sheet_cells":100000,"rows_first":2000,"rows_last":500,"rows_between":2000,"halvings":0,"cell_chars":16384,"cell_head_chars":4096},"cells_cut":0,"cells_raw":0,"read":"whole","date_system":"1900"}

{"sheet":"Feuil1","index":0,"n_rows":77,"n_cols":35,"rows_kept":77,"cut":false,"hidden":false,"merged":[[0,0,1,20],[11,26,13,28],[18,25,18,29],[18,1,18,5],[18,7,18,11],[18,13,18,17],[18,19,18,23]]}
["   Les cinq maisons "]
[]
["   Cinq personnes de cinq nationalités différentes habitent les cinq premières maisons d’une rue."]
["   Chaque maison a un toit de couleur différente."]
["   Chaque personne a son animal favori, sa boisson préférée et une profession différente."]
["   Complète les maisons en sélectionnant tes choix avec les menus déroulants sous les maisons."]
[null,null,null,null,null,null,null,null,null,null,null,null,null,null,null,null,null,null,null,null,null,null,null,null,null,null,null,null,null,null,null,null,null,null,false]
[null,"L’Anglais habite la maison à toit rouge et le chien appartient à l’Espagnol. ",null,null,null,null,null,null,null,null,null,null,null,null,null,null,null,null,null,null,null,null,null,null,null,null,null,null,null,null,null,null,null,null,false]
[null,"On boit du jus de citron dans la dernière maison. Le toit de le maison précédente est noir. ",null,null,null,null,null,null,null,null,null,null,null,null,null,null,null,null,null,null,null,null,null,null,null,null,null,null,null,null,null,null,null,null,false]
[null,"Le Français boit du chocolat et le menuisier élève des rats. ",null,null,null,null,null,null,null,null,null,null,null,null,null,null,null,null,null,null,null,null,null,null,null,null,null,null,null,null,null,null,null,null,false]
[null,"L'écrivain habite la maison à toit jaune et ne boit pas du lait. ",null,null,null,null,null,null,null,null,null,null,null,null,null,null,null,null,null,null,null,null,null,null,null,null,null,null,null,null,null,null,null,null,false]
[null,"C’est dans la maison du milieu que l’on boit du lait. ",null,null,null,null,null,null,null,null,null,null,null,null,null,null,null,null,null,null,null,null,null,null,null,null,null,null,null,null,null,null,null,null,false]
[null,"La première maison est habitée par l'Allemand et la maison voisine a un toit bleu. ",null,null,null,null,null,null,null,null,null,null,null,null,null,null,null,null,null,null,null,null,null,null,null,null,null,null,null,null,null,null,null,null,false]
[null,"Le médecin habite la maison voisine de celle du propriétaire du perroquet. ",null,null,null,null,null,null,null,null,null,null,null,null,null,null,null,null,null,null,null,null,null,null,null,null,null,null,null,null,null,null,null,null,false]
[null,"L'écrivain habite la maison voisine de celle du propriétaire de la chèvre. ",null,null,null,null,null,null,null,null,null,null,null,null,null,null,null,null,null,null,null,null,null,null,null,null,null,null,null,null,null,null,null,null,false]
[null,"Le Japonais est footballeur et n’a qu’un seul voisin. ",null,null,null,null,null,null,null,null,null,null,null,null,null,null,null,null,null,null,null,null,null,null,null,null,null,null,null,null,null,null,null,null,false]
[null,"Le musicien boit du jus d’orange."]
[]
[]
[]
[]
[]
[]
[]
[]
["   Toit",null,1,null,{"$f":"C26-1","v":0},null,null,null,1,null,{"$f":"I26-1","v":0},null,null,null,1,null,{"$f":"O26-1","v":0},null,null,null,1,null,{"$f":"U26-1","v":0},null,null,null,1,null,{"$f":"AA26-1","v":0}]
[]
["   Nationalité",null,1,null,{"$f":"C28-1","v":0},null,null,null,1,null,{"$f":"I28-1","v":0},null,null,null,1,null,{"$f":"O28-1","v":0},null,null,null,1,null,{"$f":"U28-1","v":0},null,null,null,1,null,{"$f":"AA28-1","v":0}]
[]
["   Profession",null,1,null,0,null,null,null,1,null,0,null,null,null,1,null,{"$f":"O30-1","v":0},null,null,null,1,null,0,null,null,null,1,null,0]
[]
["   Animal",null,1,null,0,null,null,null,1,null,0,null,null,null,1,null,{"$f":"O32-1","v":0},null,null,null,1,null,0,null,null,null,1,null,0]
[]
["   Boisson",null,1,null,0,null,null,null,1,null,0,null,null,null,1,null,{"$f":"O34-1","v":0},null,null,null,1,null,0,null,null,null,1,null,0]
[]
[]
[]
[null,null,"Toit",null,null,null,null,null,"Nationalité",null,null,null,null,null,"Profession",null,null,null,null,null,"Animal",null,null,null,null,null,"Boisson"]
[null,null," ",null,0,null,null,null," ",null,0,null,null,null," ",null,0,null,null,null," ",null,0,null,null,null," ",null,0]
[null,null,"Bleu",null,1,null,null,null,"Allemand",null,1,null,null,null,"Ecrivain",null,1,null,null,null,"Chèvre",null,1,null,null,null,"Chocolat",null,1]
[null,null,"Jaune",null,2,null,null,null,"Anglais",null,2,null,null,null,"Footballeur",null,2,null,null,null,"Chien",null,2,null,null,null,"Jus de citron",null,2]
[null,null,"Noir",null,3,null,null,null,"Espagnol",null,3,null,null,null,"Médecin",null,3,null,null,null,"Perroquet",null,3,null,null,null,"Jus d'orange",null,3]
[null,null,"Rouge",null,4,null,null,null,"Français",null,4,null,null,null,"Menuisier",null,4,null,null,null,"Rat",null,4,null,null,null,"Lait",null,4]
[null,null,"Vert",null,5,null,null,null,"Japonais",null,5,null,null,null,"Musicien",null,5,null,null,null,"Zèbre",null,5,null,null,null,"Thé menthe",null,5]
[]
[]
[]
[null,null,null,null,"Bonnes réponses"]
[]
[]
[null,null,null,null,2,null,null,null,{"$f":"IF(E51=E26,1,0)","v":0},null,1,null,null,null,{"$f":"IF(K51=K26,1,0)","v":0},null,4,null,null,null,{"$f":"IF(Q51=Q26,1,0)","v":0},null,3,null,null,null,{"$f":"IF(W51=W26,1,0)","v":0},null,5,null,null,null,{"$f":"IF(AC51=AC26,1,0)","v":0}]
[]
[null,null,null,null,1,null,null,null,{"$f":"IF(E53=E28,1,0)","v":0},null,4,null,null,null,{"$f":"IF(K53=K28,1,0)","v":0},null,2,null,null,null,{"$f":"IF(Q53=Q28,1,0)","v":0},null,3,null,null,null,{"$f":"IF(W53=W28,1,0)","v":0},null,5,null,null,null,{"$f":"IF(AC53=AC28,1,0)","v":0}]
[]
[null,null,null,null,1,null,null,null,0,null,3,null,null,null,0,null,4,null,null,null,0,null,5,null,null,null,0,null,2,null,null,null,0]
[]
[null,null,null,null,3,null,null,null,0,null,1,null,null,null,0,null,4,null,null,null,0,null,2,null,null,null,0,null,5,null,null,null,0]
[]
[null,null,null,null,5,null,null,null,0,null,1,null,null,null,0,null,4,null,null,null,0,null,3,null,null,null,0,null,2,null,null,null,0]
[]
[null,null,null,null,null,null,null,null,{"$f":"SUM(I51:I59)","v":0},null,null,null,null,null,{"$f":"SUM(O51:O59)","v":0},null,null,null,null,null,{"$f":"SUM(U51:U59)","v":0},null,null,null,null,null,{"$f":"SUM(AA51:AA59)","v":0},null,null,null,null,null,{"$f":"SUM(AG51:AG59)","v":0}]
[]
[null,null,null,null,"Total",null,null,null,{"$f":"I61+O61+U61+AA61+AG61","v":0}]
[]
[]
[]
[]
[]
[]
[]
[]
[]
[]
[]
["Test logique proposé sur http://matoumatheux.ac-rennes.fr"]
["Version Excel Y. Péguiron"]
["28.10.2014 (compatible Excel 2013)"]

{"sheet":"Feuil2","index":1,"n_rows":0,"n_cols":0,"rows_kept":0,"cut":false,"hidden":true,"merged":[]}